[Event "*** Titled Tuesday Blitz AM"]
[Site "Chess.com"]
[Date "2020.01.07"]
[Round "7"]
[White "LonesomeGeorge1"]
[Black "zurzan"]
[Result "1-0"]
[WhiteElo "2293"]
[BlackElo "1958"]
[TimeControl "180+2"]
[EndTime "10:29:56 PST"]
[Termination "LonesomeGeorge1 won by resignation"]

1. d4 {[%clk 0:03:01.9]} 1... f5 {[%clk 0:02:59.9]} 2. Nf3 {[%clk 0:02:58]} 2...
Nf6 {[%clk 0:03:00.3]} 3. Bf4 {[%clk 0:02:58]} 3... d6 {[%clk 0:03:00.8]} 4. e3
{[%clk 0:02:55.6]} 4... g6 {[%clk 0:03:01.5]} 5. h4 {[%clk 0:02:55.8]} 5... Bg7
{[%clk 0:03:03.4]} 6. h5 {[%clk 0:02:56.3]} 6... gxh5 {[%clk 0:03:02.7]} 7. Bc4
{[%clk 0:02:52]} 7... e6 {[%clk 0:03:03.1]} 8. Nc3 {[%clk 0:02:51.4]} 8... a6
{[%clk 0:02:59.8]} 9. a3 {[%clk 0:02:51.7]} 9... b5 {[%clk 0:03:00.3]} 10. Ba2
{[%clk 0:02:52.6]} 10... Bb7 {[%clk 0:03:01]} 11. Ng5 {[%clk 0:02:48]} 11... Qe7
{[%clk 0:02:20.7]} 12. Nxe6 {[%clk 0:02:41.3]} 12... Nc6 {[%clk 0:02:04.3]} 13.
Nd5 {[%clk 0:02:36.8]} 13... Nxd5 {[%clk 0:02:02.2]} 14. Qxh5+ {[%clk
0:02:25.1]} 14... Kd7 {[%clk 0:01:57.4]} 15. Bxd5 {[%clk 0:02:23.1]} 15... Bf6
{[%clk 0:01:43.3]} 16. Qxf5 {[%clk 0:02:18.7]} 16... Ke8 {[%clk 0:01:33.4]} 17.
Rh6 {[%clk 0:02:05.4]} 1-0

[Event "*** Titled Tuesday Blitz AM"]
[Site "Chess.com"]
[Date "2020.01.07"]
[Round "7"]
[White "SHIVACalypso"]
[Black "LarissaSteenbekkers"]
[Result "0-1"]
[WhiteElo "2248"]
[BlackElo "1709"]
[TimeControl "180+2"]
[EndTime "10:29:59 PST"]
[Termination "LarissaSteenbekkers won by resignation"]

1. Nf3 {[%clk 0:03:01.9]} 1... c5 {[%clk 0:02:58]} 2. c4 {[%clk 0:03:02.4]} 2...
Nc6 {[%clk 0:02:56.9]} 3. g3 {[%clk 0:03:04]} 3... g6 {[%clk 0:02:55.9]} 4. Bg2
{[%clk 0:03:05.5]} 4... Bg7 {[%clk 0:02:56.8]} 5. O-O {[%clk 0:03:06.9]} 5... e6
{[%clk 0:02:56.8]} 6. d3 {[%clk 0:03:03.6]} 6... Nge7 {[%clk 0:02:54.7]} 7. Nc3
{[%clk 0:03:03.8]} 7... O-O {[%clk 0:02:54.4]} 8. e4 {[%clk 0:03:05.3]} 8... d5
{[%clk 0:02:49.6]} 9. cxd5 {[%clk 0:03:06.3]} 9... exd5 {[%clk 0:02:48]} 10. Bd2
{[%clk 0:03:08.2]} 10... b6 {[%clk 0:02:43.9]} 11. Qc1 {[%clk 0:03:03.3]} 11...
Bb7 {[%clk 0:02:40.3]} 12. Bh6 {[%clk 0:03:02.1]} 12... Nb4 {[%clk 0:02:38.3]}
13. Rd1 {[%clk 0:02:34.7]} 13... Qc8 {[%clk 0:02:05.1]} 14. Bxg7 {[%clk
0:02:32.5]} 14... Kxg7 {[%clk 0:02:02.9]} 15. a3 {[%clk 0:02:34]} 15... Nxd3
{[%clk 0:01:58.8]} 16. Rxd3 {[%clk 0:02:33.5]} 16... dxe4 {[%clk 0:01:58.7]} 17.
Nxe4 {[%clk 0:02:27.5]} 17... Bxe4 {[%clk 0:01:57.1]} 18. Re3 {[%clk 0:02:28.5]}
18... Qb7 {[%clk 0:01:47.6]} 19. Qc3+ {[%clk 0:02:19.6]} 19... f6 {[%clk
0:01:43.2]} 20. Rae1 {[%clk 0:02:18.6]} 20... Nd5 {[%clk 0:01:40.2]} 21. Qd2
{[%clk 0:02:17.3]} 21... Nxe3 {[%clk 0:01:39]} 22. Qxe3 {[%clk 0:02:15.3]} 22...
Rae8 {[%clk 0:01:36.5]} 0-1

[Event "*** Titled Tuesday Blitz AM"]
[Site "Chess.com"]
[Date "2020.01.07"]
[Round "7"]
[White "mikhaillushenkov"]
[Black "bluejay1897"]
[Result "1-0"]
[WhiteElo "2655"]
[BlackElo "2387"]
[TimeControl "180+2"]
[EndTime "10:30:37 PST"]
[Termination "mikhaillushenkov won by resignation"]

1. Nf3 {[%clk 0:03:01.9]} 1... Nf6 {[%clk 0:02:58.7]} 2. c4 {[%clk 0:03:02.6]}
2... e6 {[%clk 0:02:55.8]} 3. Nc3 {[%clk 0:02:58.4]} 3... d5 {[%clk 0:02:56]} 4.
d4 {[%clk 0:02:56.8]} 4... Be7 {[%clk 0:02:54.7]} 5. Bg5 {[%clk 0:02:56.8]} 5...
O-O {[%clk 0:02:55.1]} 6. e3 {[%clk 0:02:56.8]} 6... Nbd7 {[%clk 0:02:55.6]} 7.
cxd5 {[%clk 0:02:56]} 7... exd5 {[%clk 0:02:56.2]} 8. Bd3 {[%clk 0:02:56.8]}
8... c6 {[%clk 0:02:57.5]} 9. Qc2 {[%clk 0:02:57.6]} 9... Re8 {[%clk 0:02:58.6]}
10. O-O {[%clk 0:02:57.8]} 10... Ne4 {[%clk 0:02:58.1]} 11. Bxe4 {[%clk
0:02:43.2]} 11... Bxg5 {[%clk 0:02:43.5]} 12. Bxh7+ {[%clk 0:02:40]} 12... Kh8
{[%clk 0:02:42.3]} 13. Nxg5 {[%clk 0:02:26.5]} 13... Qxg5 {[%clk 0:02:41.9]} 14.
Bd3 {[%clk 0:02:26.4]} 14... Nf6 {[%clk 0:02:40.2]} 15. Rae1 {[%clk 0:02:20.5]}
15... g6 {[%clk 0:02:30.8]} 16. e4 {[%clk 0:02:06.4]} 16... Kg7 {[%clk
0:02:20.6]} 17. f4 {[%clk 0:01:59.2]} 17... Qh6 {[%clk 0:02:12.8]} 18. e5 {[%clk
0:01:59]} 18... Nh5 {[%clk 0:02:08.4]} 19. Qf2 {[%clk 0:01:53.3]} 19... Bd7
{[%clk 0:02:00.6]} 20. f5 {[%clk 0:01:50.5]} 20... Qg5 {[%clk 0:01:43]} 21. fxg6
{[%clk 0:01:38.6]} 21... Be6 {[%clk 0:01:37.7]} 22. Qe3 {[%clk 0:01:23.6]} 1-0

[Event "*** Titled Tuesday Blitz AM"]
[Site "Chess.com"]
[Date "2020.01.07"]
[Round "7"]
[White "Azatic"]
[Black "Bulldog167"]
[Result "0-1"]
[WhiteElo "2574"]
[BlackElo "2726"]
[TimeControl "180+2"]
[EndTime "10:30:41 PST"]
[Termination "Bulldog167 won by resignation"]

1. e4 {[%clk 0:03:01.9]} 1... e6 {[%clk 0:03:01.1]} 2. d4 {[%clk 0:03:02.7]}
2... d5 {[%clk 0:03:02.7]} 3. e5 {[%clk 0:03:04]} 3... c5 {[%clk 0:03:03.9]} 4.
c3 {[%clk 0:03:05.6]} 4... Nc6 {[%clk 0:03:05.6]} 5. Nf3 {[%clk 0:03:07]} 5...
Bd7 {[%clk 0:03:07.2]} 6. a3 {[%clk 0:03:08.4]} 6... Nge7 {[%clk 0:03:08.1]} 7.
b4 {[%clk 0:03:09.3]} 7... cxd4 {[%clk 0:03:09.3]} 8. cxd4 {[%clk 0:03:11.2]}
8... Nf5 {[%clk 0:03:10.9]} 9. Be3 {[%clk 0:03:12.6]} 9... b5 {[%clk 0:03:11.4]}
10. Nc3 {[%clk 0:03:06.1]} 10... a5 {[%clk 0:03:10.3]} 11. bxa5 {[%clk
0:03:02.2]} 11... Nxe3 {[%clk 0:03:00.5]} 12. fxe3 {[%clk 0:03:02.4]} 12... b4
{[%clk 0:02:35.2]} 13. axb4 {[%clk 0:02:49.8]} 13... Bxb4 {[%clk 0:02:35.4]} 14.
Qd3 {[%clk 0:02:50.6]} 14... Rxa5 {[%clk 0:02:26.6]} 15. Rc1 {[%clk 0:02:41.3]}
15... Ra3 {[%clk 0:02:26.5]} 16. Nd2 {[%clk 0:02:42.4]} 16... Qa5 {[%clk
0:02:08.6]} 17. Ndb1 {[%clk 0:02:41.6]} 17... Ra1 {[%clk 0:02:09.7]} 18. Kf2
{[%clk 0:02:20]} 18... Bxc3 {[%clk 0:01:43.3]} 19. Rxc3 {[%clk 0:02:19.1]} 19...
Rxb1 {[%clk 0:01:44.1]} 20. Rxc6 {[%clk 0:02:12.5]} 20... Qe1+ {[%clk 0:01:36]}
21. Kf3 {[%clk 0:02:12.1]} 21... Bxc6 {[%clk 0:01:37.9]} 22. Qa6 {[%clk
0:02:09.4]} 22... O-O {[%clk 0:01:04.4]} 23. Qxc6 {[%clk 0:02:09.9]} 23... Rb3
{[%clk 0:01:05.8]} 0-1

[Event "*** Titled Tuesday Blitz AM"]
[Site "Chess.com"]
[Date "2020.01.07"]
[Round "7"]
[White "politeplayer"]
[Black "hansen"]
[Result "0-1"]
[WhiteElo "2170"]
[BlackElo "2891"]
[TimeControl "180+2"]
[EndTime "10:30:44 PST"]
[Termination "hansen won by resignation"]

1. e4 {[%clk 0:03:01.9]} 1... c5 {[%clk 0:02:59.6]} 2. d4 {[%clk 0:03:02.8]}
2... cxd4 {[%clk 0:03:00.5]} 3. c3 {[%clk 0:03:04.1]} 3... Nf6 {[%clk
0:03:00.8]} 4. e5 {[%clk 0:03:05.3]} 4... Nd5 {[%clk 0:03:02]} 5. Nf3 {[%clk
0:03:05.7]} 5... Nc6 {[%clk 0:03:03]} 6. Bc4 {[%clk 0:03:04.4]} 6... Nb6 {[%clk
0:03:03.8]} 7. Bb3 {[%clk 0:03:05.6]} 7... d5 {[%clk 0:03:03.7]} 8. exd6 {[%clk
0:03:04.8]} 8... Qxd6 {[%clk 0:03:04.7]} 9. O-O {[%clk 0:03:04.5]} 9... Be6
{[%clk 0:03:05.5]} 10. Bxe6 {[%clk 0:03:03.8]} 10... Qxe6 {[%clk 0:03:07.4]} 11.
Re1 {[%clk 0:03:04.5]} 11... Qd7 {[%clk 0:02:55.9]} 12. cxd4 {[%clk 0:03:03.6]}
12... e6 {[%clk 0:02:56]} 13. Nc3 {[%clk 0:03:02.3]} 13... Be7 {[%clk
0:02:46.1]} 14. Be3 {[%clk 0:02:49.4]} 14... O-O {[%clk 0:02:46.4]} 15. Rc1
{[%clk 0:02:50]} 15... Rad8 {[%clk 0:02:46.5]} 16. Qe2 {[%clk 0:02:44.7]} 16...
Nd5 {[%clk 0:02:47.1]} 17. Ne4 {[%clk 0:02:32.9]} 17... h6 {[%clk 0:02:40.9]}
18. Nc5 {[%clk 0:02:30.2]} 18... Bxc5 {[%clk 0:02:39.1]} 19. Rxc5 {[%clk
0:02:22.8]} 19... Rc8 {[%clk 0:02:37.3]} 20. Rec1 {[%clk 0:02:20.5]} 20... b6
{[%clk 0:02:37.3]} 21. Ne5 {[%clk 0:01:58.1]} 21... Nxe5 {[%clk 0:02:35.3]} 22.
Rxc8 {[%clk 0:01:59.6]} 22... Rxc8 {[%clk 0:02:31.4]} 23. Rxc8+ {[%clk
0:01:58.7]} 23... Qxc8 {[%clk 0:02:32]} 24. dxe5 {[%clk 0:02:00.1]} 24... Nxe3
{[%clk 0:02:20.4]} 25. Qxe3 {[%clk 0:01:39.5]} 25... Qc2 {[%clk 0:02:20.4]} 26.
g4 {[%clk 0:01:08.5]} 26... Qd1+ {[%clk 0:02:16.2]} 27. Kg2 {[%clk 0:01:07.4]}
27... Qxg4+ {[%clk 0:02:17.7]} 28. Kf1 {[%clk 0:01:05.4]} 28... Qc4+ {[%clk
0:02:18.4]} 29. Kg2 {[%clk 0:01:05.1]} 29... Qxa2 {[%clk 0:02:19.4]} 30. Qd4
{[%clk 0:01:05]} 30... Qd5+ {[%clk 0:02:19.6]} 0-1

[Event "*** Titled Tuesday Blitz AM"]
[Site "Chess.com"]
[Date "2020.01.07"]
[Round "7"]
[White "allvim"]
[Black "ristingho"]
[Result "1-0"]
[WhiteElo "2348"]
[BlackElo "2500"]
[TimeControl "180+2"]
[EndTime "10:30:51 PST"]
[Termination "allvim won by resignation"]

1. e4 {[%clk 0:03:01.9]} 1... c6 {[%clk 0:02:58.8]} 2. Nf3 {[%clk 0:02:53.8]}
2... d5 {[%clk 0:02:56.4]} 3. Nc3 {[%clk 0:02:54.7]} 3... Nf6 {[%clk 0:02:55.6]}
4. e5 {[%clk 0:02:30]} 4... Ne4 {[%clk 0:02:54.4]} 5. Nxe4 {[%clk 0:02:28.9]}
5... dxe4 {[%clk 0:02:56.3]} 6. Ng5 {[%clk 0:02:27.2]} 6... Qd5 {[%clk
0:02:40.8]} 7. d4 {[%clk 0:02:25.4]} 7... exd3 {[%clk 0:02:40.6]} 8. Qxd3 {[%clk
0:02:23.9]} 8... Qxe5+ {[%clk 0:02:40]} 9. Be2 {[%clk 0:02:23.8]} 9... Bf5
{[%clk 0:02:39.6]} 10. Qb3 {[%clk 0:02:19.9]} 10... Nd7 {[%clk 0:02:12.7]} 11.
Qxf7+ {[%clk 0:02:18.9]} 11... Kd8 {[%clk 0:02:13.9]} 12. Be3 {[%clk 0:02:10.4]}
12... h6 {[%clk 0:01:46.5]} 13. Nf3 {[%clk 0:02:03]} 13... Qe6 {[%clk 0:01:41]}
14. Qxe6 {[%clk 0:02:03.9]} 14... Bxe6 {[%clk 0:01:42.9]} 15. O-O-O {[%clk
0:02:05.6]} 15... g5 {[%clk 0:01:37.8]} 16. h4 {[%clk 0:02:00]} 16... g4 {[%clk
0:01:36.6]} 17. Nd4 {[%clk 0:02:00.6]} 17... Bd5 {[%clk 0:01:29.2]} 18. c4
{[%clk 0:02:01.5]} 18... Bxg2 {[%clk 0:01:27.5]} 19. Ne6+ {[%clk 0:02:01.8]}
19... Kc8 {[%clk 0:01:26]} 20. Rhg1 {[%clk 0:02:02.6]} 20... Bf3 {[%clk
0:01:24.8]} 21. Bxf3 {[%clk 0:02:03.2]} 21... gxf3 {[%clk 0:01:26.7]} 22. Bd4
{[%clk 0:01:58.1]} 22... Rh7 {[%clk 0:01:19.2]} 23. Rg8 {[%clk 0:01:58.8]} 23...
Rf7 {[%clk 0:01:19.1]} 24. Bg7 {[%clk 0:01:55]} 1-0

[Event "*** Titled Tuesday Blitz AM"]
[Site "Chess.com"]
[Date "2020.01.07"]
[Round "7"]
[White "ChessFunMaker"]
[Black "sandromareco"]
[Result "0-1"]
[WhiteElo "2352"]
[BlackElo "2775"]
[TimeControl "180+2"]
[EndTime "10:31:27 PST"]
[Termination "sandromareco won on time"]

1. c4 {[%clk 0:03:00.7]} 1... Nf6 {[%clk 0:03:00.3]} 2. g3 {[%clk 0:03:02]} 2...
g6 {[%clk 0:02:59.9]} 3. Bg2 {[%clk 0:03:03.5]} 3... Bg7 {[%clk 0:03:01.2]} 4.
Nc3 {[%clk 0:03:05.2]} 4... d6 {[%clk 0:03:02.5]} 5. e4 {[%clk 0:03:06.6]} 5...
O-O {[%clk 0:03:03.5]} 6. Nge2 {[%clk 0:03:08.3]} 6... c5 {[%clk 0:03:04.6]} 7.
O-O {[%clk 0:03:09.8]} 7... Nc6 {[%clk 0:03:05.8]} 8. d3 {[%clk 0:03:11.4]} 8...
Ne8 {[%clk 0:03:06.4]} 9. Be3 {[%clk 0:03:11.2]} 9... Nd4 {[%clk 0:03:03.5]} 10.
Qd2 {[%clk 0:03:06.2]} 10... Nc7 {[%clk 0:03:02.7]} 11. Bh6 {[%clk 0:03:04.3]}
11... Bxh6 {[%clk 0:03:03]} 12. Qxh6 {[%clk 0:03:03.8]} 12... e5 {[%clk
0:03:03.2]} 13. f4 {[%clk 0:02:54.4]} 13... f6 {[%clk 0:03:03.8]} 14. h3 {[%clk
0:02:27.1]} 14... Nc2 {[%clk 0:02:53.2]} 15. Rac1 {[%clk 0:01:42.3]} 15... Ne3
{[%clk 0:02:52.4]} 16. Rf3 {[%clk 0:01:28.5]} 16... Nxg2 {[%clk 0:02:53]} 17.
Kxg2 {[%clk 0:01:30.4]} 17... Bd7 {[%clk 0:02:53.9]} 18. g4 {[%clk 0:01:24.7]}
18... Qe7 {[%clk 0:02:52.3]} 19. Rcf1 {[%clk 0:01:12]} 19... a6 {[%clk
0:02:42.9]} 20. fxe5 {[%clk 0:01:00.9]} 20... dxe5 {[%clk 0:02:39.4]} 21. Ng3
{[%clk 0:00:40.1]} 21... b5 {[%clk 0:02:13]} 22. Nd5 {[%clk 0:00:32.9]} 22...
Nxd5 {[%clk 0:02:13.6]} 23. exd5 {[%clk 0:00:27.7]} 23... bxc4 {[%clk
0:02:14.5]} 0-1

[Event "*** Titled Tuesday Blitz AM"]
[Site "Chess.com"]
[Date "2020.01.07"]
[Round "7"]
[White "Duhless"]
[Black "Parhamov"]
[Result "0-1"]
[WhiteElo "3103"]
[BlackElo "3072"]
[TimeControl "180+2"]
[EndTime "10:31:36 PST"]
[Termination "Parhamov won on time"]

1. c4 {[%clk 0:03:01.9]} 1... e6 {[%clk 0:02:58.4]} 2. Nf3 {[%clk 0:03:01.1]}
2... d5 {[%clk 0:02:59.4]} 3. d4 {[%clk 0:03:02.6]} 3... Nf6 {[%clk 0:03:00]} 4.
Bg5 {[%clk 0:03:02.9]} 4... h6 {[%clk 0:02:58.5]} 5. Bxf6 {[%clk 0:03:02]} 5...
Qxf6 {[%clk 0:03:00.1]} 6. e3 {[%clk 0:03:02.9]} 6... Bb4+ {[%clk 0:02:59.1]} 7.
Nbd2 {[%clk 0:03:02.9]} 7... O-O {[%clk 0:02:59.5]} 8. Rc1 {[%clk 0:03:03.4]}
8... c5 {[%clk 0:02:53.2]} 9. a3 {[%clk 0:03:03.7]} 9... Bxd2+ {[%clk 0:02:52]}
10. Qxd2 {[%clk 0:03:04.3]} 10... cxd4 {[%clk 0:02:53.3]} 11. Qxd4 {[%clk
0:03:04.8]} 11... Qxd4 {[%clk 0:02:50.9]} 12. Nxd4 {[%clk 0:03:05.5]} 12... dxc4
{[%clk 0:02:49.2]} 13. Bxc4 {[%clk 0:03:01]} 13... Bd7 {[%clk 0:02:48.9]} 14.
O-O {[%clk 0:02:23.9]} 14... a6 {[%clk 0:02:38]} 15. Rfd1 {[%clk 0:02:21.6]}
15... Nc6 {[%clk 0:02:36.3]} 16. Nb3 {[%clk 0:02:20.7]} 16... Ne5 {[%clk
0:02:35.2]} 17. Nc5 {[%clk 0:02:18.6]} 17... Nxc4 {[%clk 0:02:31.4]} 18. Rxd7
{[%clk 0:02:02.3]} 18... b5 {[%clk 0:02:26.3]} 19. b3 {[%clk 0:01:15.8]} 19...
Rfc8 {[%clk 0:02:21.5]} 20. Nxe6 {[%clk 0:00:49.9]} 20... Nxa3 {[%clk
0:02:22.1]} 21. Rxc8+ {[%clk 0:00:41.4]} 21... Rxc8 {[%clk 0:02:24]} 22. Nc7
{[%clk 0:00:42.9]} 22... a5 {[%clk 0:02:24.3]} 23. g4 {[%clk 0:00:42.6]} 23...
a4 {[%clk 0:02:23.6]} 24. bxa4 {[%clk 0:00:38.1]} 24... bxa4 {[%clk 0:02:25.5]}
25. Nd5 {[%clk 0:00:30.2]} 25... Ra8 {[%clk 0:02:26.2]} 26. Nb6 {[%clk
0:00:30.9]} 26... Ra6 {[%clk 0:02:25]} 0-1

[Event "*** Titled Tuesday Blitz AM"]
[Site "Chess.com"]
[Date "2020.01.07"]
[Round "7"]
[White "ori99"]
[Black "MiroVlasenko"]
[Result "1-0"]
[WhiteElo "2104"]
[BlackElo "2683"]
[TimeControl "180+2"]
[EndTime "10:31:40 PST"]
[Termination "ori99 won on time"]

1. e4 {[%clk 0:02:57.9]} 1... Nc6 {[%clk 0:03:00.1]} 2. d4 {[%clk 0:02:55.2]}
2... d5 {[%clk 0:03:00.8]} 3. e5 {[%clk 0:02:56.4]} 3... Bf5 {[%clk 0:03:01.5]}
4. Nf3 {[%clk 0:02:56.2]} 4... e6 {[%clk 0:03:02.5]} 5. Nbd2 {[%clk 0:02:54.1]}
5... Nb4 {[%clk 0:02:59]} 6. Bb5+ {[%clk 0:02:52.4]} 6... c6 {[%clk 0:02:59.1]}
7. Ba4 {[%clk 0:02:52.5]} 7... b5 {[%clk 0:02:50.9]} 8. Bb3 {[%clk 0:02:51.9]}
8... a5 {[%clk 0:02:50.8]} 9. a4 {[%clk 0:02:50.7]} 9... c5 {[%clk 0:02:29.4]}
10. dxc5 {[%clk 0:02:48]} 10... Bxc5 {[%clk 0:02:31.3]} 11. O-O {[%clk 0:02:47]}
11... Ne7 {[%clk 0:02:26.4]} 12. axb5 {[%clk 0:02:45.7]} 12... O-O {[%clk
0:02:26.4]} 13. Nh4 {[%clk 0:02:46]} 13... Qb6 {[%clk 0:02:20.1]} 14. Ba4 {[%clk
0:02:43]} 14... Be4 {[%clk 0:02:10.8]} 15. Nxe4 {[%clk 0:02:41.6]} 15... dxe4
{[%clk 0:02:11.2]} 16. Qe2 {[%clk 0:02:42.8]} 16... Rad8 {[%clk 0:01:56.2]} 17.
g3 {[%clk 0:02:37.4]} 17... Nf5 {[%clk 0:01:49.4]} 18. Qxe4 {[%clk 0:02:35.6]}
18... Rd4 {[%clk 0:01:47.2]} 19. Qf3 {[%clk 0:02:36]} 19... Nxh4 {[%clk
0:01:32.3]} 20. gxh4 {[%clk 0:02:37.9]} 20... Nd5 {[%clk 0:01:19.3]} 21. c3
{[%clk 0:02:34.9]} 21... Rxh4 {[%clk 0:01:08.9]} 22. Bg5 {[%clk 0:02:35.1]}
22... Rc4 {[%clk 0:00:56.4]} 23. Bb3 {[%clk 0:02:35.2]} 23... Qxb5 {[%clk
0:00:56.4]} 24. Bxc4 {[%clk 0:02:35.9]} 24... Qxc4 {[%clk 0:00:57.8]} 25. Rxa5
{[%clk 0:02:37.8]} 25... h6 {[%clk 0:00:53.2]} 26. Bd2 {[%clk 0:02:34]} 26...
Bb6 {[%clk 0:00:51.1]} 27. Ra3 {[%clk 0:02:32.2]} 27... Ne7 {[%clk 0:00:39.3]}
28. Re1 {[%clk 0:02:23.4]} 1-0

[Event "*** Titled Tuesday Blitz AM"]
[Site "Chess.com"]
[Date "2020.01.07"]
[Round "7"]
[White "Vugar_Manafov"]
[Black "lucasran"]
[Result "1-0"]
[WhiteElo "2579"]
[BlackElo "2693"]
[TimeControl "180+2"]
[EndTime "10:31:44 PST"]
[Termination "Vugar_Manafov won on time"]

1. Nf3 {[%clk 0:03:01.4]} 1... Nf6 {[%clk 0:03:00.4]} 2. g3 {[%clk 0:03:01.2]}
2... b6 {[%clk 0:03:01.6]} 3. b3 {[%clk 0:03:01.2]} 3... g6 {[%clk 0:03:01.5]}
4. Bb2 {[%clk 0:03:02.4]} 4... Bg7 {[%clk 0:03:02.5]} 5. Bg2 {[%clk 0:03:03.8]}
5... Bb7 {[%clk 0:03:03.9]} 6. O-O {[%clk 0:03:04.8]} 6... c5 {[%clk 0:03:04]}
7. c4 {[%clk 0:03:05.4]} 7... O-O {[%clk 0:03:04.5]} 8. Nc3 {[%clk 0:03:05.4]}
8... Nc6 {[%clk 0:03:04.8]} 9. d4 {[%clk 0:03:05.7]} 9... cxd4 {[%clk
0:02:59.9]} 10. Nxd4 {[%clk 0:03:07.5]} 10... Rc8 {[%clk 0:02:59.5]} 11. Nd5
{[%clk 0:02:59.2]} 11... Nxd4 {[%clk 0:02:11.5]} 12. Qxd4 {[%clk 0:02:55.4]}
12... Ba8 {[%clk 0:01:45.5]} 13. Rfd1 {[%clk 0:02:50.8]} 13... d6 {[%clk
0:01:44.8]} 14. e4 {[%clk 0:02:43.9]} 14... Nh5 {[%clk 0:01:34.3]} 15. Qd2
{[%clk 0:02:42.3]} 15... Bxb2 {[%clk 0:01:34.4]} 16. Qxb2 {[%clk 0:02:44.2]}
16... Ng7 {[%clk 0:01:31.3]} 17. Rd2 {[%clk 0:02:32.5]} 17... Bxd5 {[%clk
0:01:05.9]} 18. exd5 {[%clk 0:02:22.9]} 18... Rc7 {[%clk 0:00:57.8]} 19. Re1
{[%clk 0:02:19]} 19... Re8 {[%clk 0:00:53]} 20. Rde2 {[%clk 0:02:18.3]} 20...
Qd7 {[%clk 0:00:41.2]} 21. h4 {[%clk 0:02:16.4]} 21... Qd8 {[%clk 0:00:41.4]}
22. Bh3 {[%clk 0:02:15.3]} 22... Rb7 {[%clk 0:00:38.9]} 23. Qd4 {[%clk 0:02:10]}
1-0

[Event "*** Titled Tuesday Blitz AM"]
[Site "Chess.com"]
[Date "2020.01.07"]
[Round "7"]
[White "boasovietica"]
[Black "Tayson_7"]
[Result "1-0"]
[WhiteElo "2453"]
[BlackElo "2556"]
[TimeControl "180+2"]
[EndTime "10:31:46 PST"]
[Termination "boasovietica won on time"]

1. Nf3 {[%clk 0:03:01.9]} 1... Nf6 {[%clk 0:02:58.7]} 2. c4 {[%clk 0:03:00.7]}
2... c5 {[%clk 0:02:54.1]} 3. g3 {[%clk 0:02:58.1]} 3... Nc6 {[%clk 0:02:53.5]}
4. Bg2 {[%clk 0:02:59.1]} 4... g6 {[%clk 0:02:52.6]} 5. O-O {[%clk 0:02:59.6]}
5... Bg7 {[%clk 0:02:53.4]} 6. Nc3 {[%clk 0:02:57.5]} 6... O-O {[%clk
0:02:52.4]} 7. a3 {[%clk 0:02:58.1]} 7... d6 {[%clk 0:02:46.5]} 8. Rb1 {[%clk
0:02:57.5]} 8... Bf5 {[%clk 0:01:47.7]} 9. d3 {[%clk 0:02:55.5]} 9... Qd7 {[%clk
0:01:47.7]} 10. b4 {[%clk 0:02:30.7]} 10... b6 {[%clk 0:01:43.5]} 11. b5 {[%clk
0:02:21.8]} 11... Na5 {[%clk 0:01:43.5]} 12. Nh4 {[%clk 0:02:12.3]} 12... Bh3
{[%clk 0:01:42.8]} 13. Bxa8 {[%clk 0:02:07.6]} 13... Rxa8 {[%clk 0:01:44.7]} 14.
Ng2 {[%clk 0:02:05.6]} 14... Nh5 {[%clk 0:00:54.9]} 15. Bb2 {[%clk 0:02:03.8]}
15... h6 {[%clk 0:00:45]} 16. Nd5 {[%clk 0:01:54.8]} 16... e5 {[%clk 0:00:38.2]}
17. e3 {[%clk 0:01:48.1]} 17... Re8 {[%clk 0:00:32.7]} 18. Qc2 {[%clk
0:01:42.8]} 1-0

[Event "*** Titled Tuesday Blitz AM"]
[Site "Chess.com"]
[Date "2020.01.07"]
[Round "7"]
[White "heyiampotato"]
[Black "manitodeplomo"]
[Result "1-0"]
[WhiteElo "2519"]
[BlackElo "2681"]
[TimeControl "180+2"]
[EndTime "10:31:48 PST"]
[Termination "heyiampotato won by resignation"]

1. d4 {[%clk 0:03:01.9]} 1... g6 {[%clk 0:02:58.4]} 2. Nf3 {[%clk 0:03:02.1]}
2... Bg7 {[%clk 0:02:59.9]} 3. c4 {[%clk 0:03:03.6]} 3... d6 {[%clk 0:02:56.1]}
4. Nc3 {[%clk 0:03:04.2]} 4... e5 {[%clk 0:02:50.9]} 5. dxe5 {[%clk 0:02:59.3]}
5... dxe5 {[%clk 0:02:52.4]} 6. Qxd8+ {[%clk 0:03:00.7]} 6... Kxd8 {[%clk
0:02:54.1]} 7. g3 {[%clk 0:03:02.2]} 7... Be6 {[%clk 0:02:50.3]} 8. Ng5 {[%clk
0:02:43.8]} 8... Bxc4 {[%clk 0:02:49.5]} 9. b3 {[%clk 0:02:27.6]} 9... Be6
{[%clk 0:02:46.4]} 10. Nxe6+ {[%clk 0:02:27]} 10... fxe6 {[%clk 0:02:48.3]} 11.
Bg2 {[%clk 0:02:26]} 11... Nc6 {[%clk 0:02:33.1]} 12. Bg5+ {[%clk 0:02:24.2]}
12... Bf6 {[%clk 0:02:32.3]} 13. O-O-O+ {[%clk 0:02:25.1]} 13... Ke7 {[%clk
0:02:33.2]} 14. Be3 {[%clk 0:02:24.2]} 14... Kf7 {[%clk 0:02:24.8]} 15. Rd7+
{[%clk 0:02:23.1]} 15... Nge7 {[%clk 0:02:26.2]} 16. Rhd1 {[%clk 0:02:12.8]}
16... Rac8 {[%clk 0:02:02.1]} 17. Bc5 {[%clk 0:01:46.4]} 17... Rhd8 {[%clk
0:01:39.9]} 18. Bxc6 {[%clk 0:01:40.8]} 18... Rxd7 {[%clk 0:01:29.5]} 19. Bxd7
{[%clk 0:01:42.1]} 19... Ra8 {[%clk 0:01:25.4]} 20. Bxe7 {[%clk 0:01:42.1]}
20... Bxe7 {[%clk 0:01:24.5]} 21. Ne4 {[%clk 0:01:32.8]} 21... c6 {[%clk
0:01:10.6]} 22. Rd3 {[%clk 0:01:33.2]} 22... Rd8 {[%clk 0:01:08.1]} 23. Rf3+
{[%clk 0:01:29.7]} 23... Kg7 {[%clk 0:01:03.8]} 24. Bxe6 {[%clk 0:01:25.8]}
24... Ba3+ {[%clk 0:00:58.2]} 25. Kc2 {[%clk 0:01:26.1]} 25... h5 {[%clk
0:00:55.2]} 26. Rf7+ {[%clk 0:01:23.2]} 1-0